bitfinex/quotes_BTCUSD_20241117
["timestamp","ask_amount","ask_price","bid_price","bid_amount"]
[1731831260087,0.09852015,90671.0,90668.0,0.02198175]
[1731831260367,0.09852015,90671.0,90665.0,0.01353153]
[1731831260368,0.14778023,90670.0,90669.0,0.02198175]
[1731831260579,0.110288,90671.0,90670.0,0.01458093]
[1731831260740,0.110288,90671.0,90670.0,0.02810872]
[1731831260947,0.14778023,90672.0,90670.0,0.03656268]
[1731831261145,0.25806723,90672.0,90671.0,0.02198175]
[1731831261365,0.3576784,90672.0,90671.0,0.03010087]
[1731831261604,0.110287,90672.0,90671.0,0.02198175]
[1731831261998,0.46758137,90672.0,90671.0,0.02198175]
[1731831262210,0.71494005,90672.0,90671.0,0.02198175]
[1731831262497,0.46757655,90672.0,90671.0,0.02198175]
[1731831262921,0.7149704,90672.0,90671.0,0.02198175]
[1731831263318,0.46757655,90672.0,90671.0,0.02198175]
[1731831265105,0.46843355,90672.0,90671.0,0.02198175]
[1731831265316,0.301092,90672.0,90671.0,0.02198175]
[1731831265528,0.66638155,90672.0,90671.0,0.02198175]
[1731831266176,0.46849132,90672.0,90671.0,0.02198175]
[1731831266403,0.46846225,90672.0,90671.0,0.02198175]
[1731831266820,0.66639478,90672.0,90671.0,0.02198175]
[1731831267047,0.66639478,90672.0,90671.0,0.02194016]
[1731831267048,0.000857,90672.0,90671.0,0.02194016]
[1731831267263,0.111144,90672.0,90671.0,0.03516328]
[1731831267470,0.111144,90672.0,90671.0,0.02481799]
[1731831267678,0.111144,90672.0,90671.0,0.03881505]
[1731831269580,0.111144,90672.0,90671.0,0.02194016]
[1731831270262,0.331721,90672.0,90671.0,0.02192891]
[1731831270463,0.111144,90672.0,90671.0,0.02192891]
[1731831271513,0.000857,90672.0,90671.0,0.02192891]
[1731831271729,0.000857,90672.0,90671.0,0.03683829]
[1731831271886,0.000857,90672.0,90671.0,0.03937206]
[1731831272587,0.000857,90672.0,90671.0,0.13475068]
[1731831272787,0.000857,90672.0,90671.0,0.15162158]
[1731831273218,0.000857,90672.0,90671.0,0.13475068]
[1731831273424,0.000857,90672.0,90671.0,0.134747]
[1731831273850,0.000857,90672.0,90671.0,0.15161508]
[1731831274073,0.000857,90672.0,90671.0,0.18879717]
[1731831274775,0.000857,90672.0,90671.0,0.26820276]
[1731831274983,0.000857,90672.0,90671.0,0.31470276]
[1731831275180,0.000857,90672.0,90671.0,0.32599381]
[1731831275410,0.000857,90672.0,90671.0,0.31249717]
[1731831275636,0.000857,90672.0,90671.0,0.27370386]
[1731831275791,0.000857,90672.0,90671.0,0.31470158]
[1731831276161,0.000857,90672.0,90671.0,0.31249614]
[1731831277040,0.15834868,90690.0,90671.0,0.20220638]
[1731831277243,0.15834868,90690.0,90685.0,0.110271]
[1731831277368,0.26861368,90690.0,90686.0,0.02192366]
[1731831277576,0.110265,90690.0,90687.0,0.02458271]
[1731831277791,0.16549168,90701.0,90688.0,0.02192366]
[1731831277998,0.16549168,90701.0,90683.0,0.220546]
[1731831277999,0.11163232,90695.0,90689.0,0.04883218]
[1731831278200,0.110264,90691.0,90690.0,0.02192366]
[1731831278437,0.110262,90693.0,90690.0,0.04886148]
[1731831278607,0.110262,90693.0,90691.0,0.01614539]
[1731831278814,0.110263,90692.0,90691.0,0.00265843]
[1731831279014,0.110258,90696.0,90691.0,0.02191423]
[1731831279218,0.110261,90694.0,90692.0,0.03779213]
[1731831279444,0.00256977,90693.0,90686.0,0.0168598]
[1731831279648,0.110262,90693.0,90687.0,0.15170237]
[1731831279849,0.110262,90693.0,90688.0,0.02191264]
[1731831280114,0.00256977,90696.0,90689.0,0.02191264]
[1731831280115,0.110259,90695.0,90689.0,0.02191264]
[1731831280318,0.00256977,90694.0,90690.0,0.04163577]
[1731831280542,0.220516,90696.0,90691.0,0.02191298]
[1731831280746,0.00256977,90695.0,90692.0,0.03046527]
[1731831280957,0.110262,90693.0,90692.0,0.00855229]
[1731831281162,0.110262,90693.0,90692.0,0.03046518]
[1731831281585,0.110262,90693.0,90692.0,0.02191289]
[1731831281840,0.22189432,90693.0,90692.0,0.00842748]
[1731831283398,0.22189432,90693.0,90692.0,0.02191857]
[1731831283603,0.22189432,90693.0,90692.0,0.00842748]
[1731831285816,0.220554,90681.0,90674.0,0.03035874]
[1731831285964,0.11028,90678.0,90675.0,0.03879758]
[1731831286177,0.00256977,90680.0,90676.0,0.03879758]
[1731831286178,0.11284777,90680.0,90676.0,0.03879758]
[1731831286377,0.11028,90678.0,90677.0,0.08094666]
[1731831286728,0.11028,90678.0,90677.0,0.01107767]
[1731831286934,0.11028,90678.0,90677.0,0.02458687]
[1731831287142,0.11028,90678.0,90677.0,0.00263883]
[1731831287351,0.11028,90678.0,90677.0,0.04147147]
[1731831287566,0.11028,90678.0,90677.0,0.04204236]
[1731831287852,0.11028,90678.0,90677.0,0.04467994]
[1731831288293,0.11028,90678.0,90677.0,0.06156952]
[1731831288498,0.22191232,90678.0,90677.0,0.02458504]
[1731831288711,0.22191232,90678.0,90677.0,0.01107835]
[1731831288927,0.22191232,90678.0,90677.0,0.00844469]
[1731831289137,0.110287,90672.0,90671.0,0.0017134]
[1731831289318,0.11285677,90672.0,90671.0,0.0017134]
[1731831291849,0.110287,90672.0,90671.0,0.0017134]
[1731831292050,0.102287,90672.0,90671.0,0.0017134]
[1731831292492,0.00256977,90674.0,90671.0,0.0017134]
[1731831292719,0.110286,90673.0,90672.0,0.03325964]
[1731831292969,0.00256977,90675.0,90672.0,0.00265037]
[1731831293172,0.110284,90675.0,90672.0,0.00265037]
[1731831293757,0.00256977,90677.0,90672.0,0.00239379]
[1731831293979,0.11284777,90680.0,90674.0,0.110284]
[1731831294222,0.11284777,90680.0,90672.0,0.13517597]
[1731831294223,0.11028,90678.0,90672.0,0.13517597]
[1731831294434,0.00256977,90677.0,90675.0,0.00265322]
[1731831294638,0.00256977,90682.0,90673.0,0.04835048]
[1731831294846,0.110281,90677.0,90676.0,0.00265072]
[1731831295049,0.00256977,90677.0,90676.0,0.00265072]
[1731831295260,0.110281,90677.0,90676.0,0.00265072]
[1731831295474,0.11285077,90677.0,90671.0,0.0017134]
[1731831295675,0.00256977,90677.0,90675.0,0.110283]
[1731831295886,0.32961155,90683.0,90673.0,0.110286]
[1731831295887,0.110279,90679.0,90673.0,0.110286]
[1731831296106,0.00256977,90678.0,90676.0,0.00265072]
[1731831296328,0.00256977,90678.0,90674.0,0.110284]
[1731831296528,0.00256977,90678.0,90677.0,0.00265072]
[1731831296788,0.11028,90678.0,90675.0,0.06364926]
[1731831296991,0.11028,90678.0,90677.0,0.00265072]
[1731831297223,0.11028,90678.0,90676.0,0.00265135]
[1731831297463,0.11028,90678.0,90677.0,0.05934471]
[1731831297946,0.220529,90691.0,90679.0,0.110278]
[1731831298177,0.220529,90691.0,90674.0,0.220569]
[1731831298178,0.110274,90684.0,90680.0,0.02196524]
[1731831298409,0.110272,90685.0,90681.0,0.03528132]
[1731831298641,0.00256977,90684.0,90682.0,0.03886341]
[1731831298869,0.11284277,90684.0,90683.0,0.05757044]
[1731831299393,0.11284277,90684.0,90683.0,0.06021691]
[1731831300102,0.11284277,90684.0,90683.0,0.06021789]
[1731831300332,0.11284277,90684.0,90683.0,0.04331874]
[1731831300565,0.11284277,90684.0,90683.0,0.02461171]
[1731831300821,0.00256977,90684.0,90683.0,0.02196524]
[1731831301051,0.110273,90684.0,90683.0,0.02461171]
[1731831301296,0.110273,90684.0,90683.0,0.02196524]
[1731831301297,0.11284277,90684.0,90683.0,0.02196524]
[1731831301538,0.11284277,90684.0,90683.0,0.01939903]
[1731831301765,0.11284277,90684.0,90683.0,0.04136234]
[1731831302004,0.00256977,90684.0,90683.0,0.04136234]
[1731831302236,0.110273,90684.0,90683.0,0.02460978]
[1731831302478,0.00256977,90686.0,90683.0,0.02460978]
[1731831302721,0.110273,90684.0,90683.0,0.00264647]
[1731831302940,0.110273,90684.0,90683.0,0.03885857]
[1731831303212,0.110273,90684.0,90683.0,0.04644386]
[1731831303445,0.110273,90684.0,90683.0,0.02954741]
[1731831303694,0.110271,90686.0,90683.0,0.02196212]
[1731831303907,0.00256977,90688.0,90684.0,0.02196212]
[1731831303908,0.11284077,90685.0,90684.0,0.02196212]
[1731831304363,0.11284077,90685.0,90684.0,0.04178581]
[1731831306184,0.00256977,90685.0,90684.0,0.02459782]
[1731831306396,0.00256977,90687.0,90684.0,0.02196212]
[1731831306614,0.00256977,90687.0,90685.0,0.01351571]
[1731831306858,0.11283877,90687.0,90686.0,0.02196212]
[1731831307115,0.21933055,90688.0,90686.0,0.03897763]
[1731831307348,0.21933055,90688.0,90687.0,0.02195766]
[1731831307802,0.2213875,90690.0,90687.0,0.02195766]
[1731831307803,0.0008565,90690.0,90687.0,0.02195766]
[1731831308062,0.0008565,90690.0,90688.0,0.02195766]
[1731831308297,0.0008565,90690.0,90687.0,0.2231727]
[1731831308298,0.0008565,90690.0,90689.0,0.14911483]
[1731831308731,0.0008565,90690.0,90689.0,0.15174803]
[1731831311039,0.0008565,90690.0,90689.0,0.15172906]
[1731831312127,0.10422196,90707.0,90684.0,0.12087066]
[1731831312388,0.10906255,90706.0,90689.0,0.00262161]
[1731831312592,0.10906255,90706.0,90700.0,0.110253]
[1731831312823,0.10906255,90706.0,90701.0,0.00344532]
[1731831313038,0.10906255,90706.0,90702.0,0.00344532]
[1731831313039,0.21930955,90706.0,90702.0,0.00344532]
[1731831313280,0.21930955,90706.0,90703.0,0.03342113]
[1731831313528,0.10906255,90706.0,90703.0,0.03342113]
[1731831313729,0.110247,90705.0,90704.0,0.00247595]
[1731831314196,0.110247,90705.0,90704.0,0.03666631]
[1731831314404,0.10906255,90706.0,90704.0,0.03666631]
[1731831314616,0.11024,90711.0,90705.0,0.110246]
[1731831314834,0.11024,90711.0,90706.0,0.04043385]
[1731831314835,0.10906255,90711.0,90706.0,0.04043385]
[1731831315043,0.10906255,90711.0,90707.0,0.00344529]
[1731831315225,0.10906255,90711.0,90708.0,0.110243]
[1731831315478,0.10906255,90711.0,90706.0,0.03946638]
[1731831315479,0.10906255,90711.0,90707.0,0.0218685]
[1731831315692,0.10906255,90711.0,90709.0,0.00245876]
[1731831315954,0.10906255,90711.0,90708.0,0.00245938]
[1731831316216,0.10906255,90711.0,90710.0,0.00245813]
[1731831316430,0.21930255,90711.0,90709.0,0.00245876]
[1731831316654,0.220464,90718.0,90710.0,0.11269813]
[1731831316868,0.110234,90716.0,90711.0,0.03620672]
[1731831317123,0.220464,90718.0,90711.0,0.03620672]
[1731831317124,0.110236,90714.0,90711.0,0.03620672]
[1731831317330,0.10906255,90713.0,90712.0,0.00246001]
[1731831317544,0.10906255,90714.0,90712.0,0.00246001]
[1731831317774,0.21929855,90714.0,90713.0,0.0304396]
[1731831317987,0.10906255,90714.0,90713.0,0.0304396]
[1731831318200,0.10906255,90714.0,90713.0,0.03289773]
[1731831319336,0.110235,90715.0,90713.0,0.03289773]
[1731831319549,0.110235,90715.0,90714.0,0.02228397]
[1731831320571,0.110234,90716.0,90714.0,0.02228397]
[1731831320986,0.110234,90716.0,90715.0,0.00243257]
[1731831322060,0.102234,90716.0,90715.0,0.00243257]
[1731831323171,0.102234,90716.0,90715.0,0.01589579]
[1731831323392,0.102234,90716.0,90715.0,0.03546481]
[1731831323647,0.102234,90716.0,90715.0,0.02200159]
[1731831323866,0.102234,90716.0,90715.0,0.01589668]
[1731831324080,0.102234,90716.0,90715.0,0.01346411]
[1731831324285,0.102234,90716.0,90715.0,0.01589668]
[1731831324501,0.102234,90716.0,90715.0,0.02423028]
[1731831325437,0.330691,90719.0,90715.0,0.02423028]
[1731831325660,0.10906255,90718.0,90716.0,0.03116041]
[1731831325869,0.10906255,90718.0,90717.0,0.02179771]
[1731831326086,0.10906255,90718.0,90717.0,0.02423028]
[1731831326268,0.10906255,90718.0,90717.0,0.04072117]
[1731831326524,0.21929355,90718.0,90717.0,0.04072117]
[1731831326738,0.21929355,90718.0,90717.0,0.00243257]
[1731831327129,0.0008562,90722.0,90721.0,0.110228]
[1731831327351,0.0008562,90722.0,90721.0,0.11252293]
[1731831327810,0.0008562,90722.0,90721.0,0.15832293]
[1731831328020,0.0008562,90722.0,90721.0,0.16176747]
[1731831329135,0.0008562,90722.0,90721.0,0.17844259]
[1731831329359,0.0008562,90722.0,90721.0,0.16176747]
[1731831330036,0.0008562,90722.0,90721.0,0.16176725]
[1731831330661,0.0008562,90722.0,90721.0,0.17844237]
[1731831331587,0.0008562,90722.0,90721.0,0.16176725]
[1731831331837,0.0008562,90722.0,90721.0,0.17844237]
[1731831336398,0.0008562,90722.0,90721.0,0.18395332]
[1731831336596,0.0008562,90722.0,90721.0,0.02241437]
[1731831336597,0.1110822,90722.0,90721.0,0.02241437]
[1731831336824,0.1110822,90722.0,90721.0,0.04909129]
[1731831337026,0.1030822,90722.0,90721.0,0.03345135]
[1731831337247,0.1030822,90722.0,90721.0,0.0334516]
[1731831337886,0.1039385,90722.0,90721.0,0.03000703]
[1731831338737,0.1039385,90722.0,90721.0,0.03834451]
[1731831339066,0.1039385,90722.0,90721.0,0.04178934]
[1731831339740,0.1039385,90722.0,90721.0,0.04785391]
[1731831340763,0.1039385,90722.0,90721.0,0.03951643]
[1731831340966,0.1039385,90722.0,90721.0,0.04181871]
[1731831343327,0.1039385,90722.0,90721.0,0.05516949]
[1731831343761,0.1039385,90722.0,90721.0,0.03348133]
[1731831343984,0.1039385,90722.0,90721.0,0.05519817]
[1731831344203,0.1039385,90722.0,90721.0,0.05175341]
[1731831344409,0.1039385,90722.0,90721.0,0.04183997]
[1731831344617,0.0008563,90722.0,90721.0,0.04183997]
[1731831344812,0.0008563,90722.0,90721.0,0.04735156]
[1731831345037,0.0008563,90722.0,90721.0,0.07413392]
[1731831345287,0.0008563,90722.0,90721.0,0.07631788]
[1731831345714,0.0008563,90722.0,90721.0,0.04953552]
[1731831345938,0.1110823,90722.0,90721.0,0.04953552]
[1731831346172,0.1110823,90722.0,90721.0,0.04735156]
[1731831346399,0.1110823,90722.0,90721.0,0.04183997]
[1731831346639,0.1110823,90722.0,90721.0,0.04954009]
[1731831346640,0.0008563,90722.0,90721.0,0.04954009]
[1731831347090,0.1110823,90722.0,90721.0,0.04954009]
[1731831347713,0.1110823,90722.0,90721.0,0.0655176]
[1731831348143,0.1110823,90722.0,90721.0,0.04735154]
[1731831348346,0.1110823,90722.0,90721.0,0.04953942]
[1731831348347,0.0008563,90722.0,90721.0,0.04953942]
[1731831349262,0.0008563,90722.0,90721.0,0.15976742]
[1731831349461,0.0008563,90722.0,90721.0,0.24365033]
[1731831349703,0.0008563,90722.0,90721.0,0.28975033]
[1731831349950,0.0008563,90722.0,90721.0,0.31864817]
[1731831350831,0.10868872,90722.0,90721.0,0.04953942]
[1731831351250,0.10868872,90722.0,90721.0,0.04735154]
[1731831351499,0.10868872,90722.0,90721.0,0.04941007]
[1731831351731,0.10868872,90722.0,90721.0,0.05134234]
[1731831351955,0.10068872,90722.0,90721.0,0.04928381]
[1731831352165,0.10068872,90722.0,90721.0,0.04183997]
[1731831352166,0.20975127,90722.0,90721.0,0.04183997]
[1731831352634,0.20975127,90722.0,90721.0,0.03839521]
[1731831352865,0.20975127,90722.0,90721.0,0.02170021]
[1731831353565,0.20975127,90722.0,90721.0,0.02994814]
[1731831354023,0.20975127,90722.0,90721.0,0.02160247]
[1731831354765,0.20975127,90722.0,90721.0,0.00830808]
[1731831356672,0.110237,90713.0,90712.0,0.0017126]
[1731831356906,0.110237,90713.0,90712.0,0.01500851]
[1731831356907,0.21929955,90713.0,90712.0,0.01500851]
[1731831357356,0.21929955,90713.0,90712.0,0.02331895]
[1731831357775,0.21929955,90713.0,90712.0,0.01002304]
[1731831359311,0.21929955,90713.0,90712.0,0.0017126]
[1731831360378,0.31816664,90713.0,90712.0,0.0017126]
[1731831361291,0.31825933,90713.0,90712.0,0.0017126]
[1731831361502,0.21929955,90713.0,90712.0,0.0017126]
[1731831361978,0.31825074,90713.0,90712.0,0.0017126]
[1731831362239,0.21929955,90713.0,90712.0,0.0017126]
[1731831362433,0.31825074,90713.0,90712.0,0.0017126]
[1731831363066,0.21929955,90713.0,90712.0,0.0017126]
[1731831364843,0.21929955,90713.0,90712.0,0.0100178]
[1731831366833,0.21929955,90713.0,90712.0,0.0017126]
[1731831367040,0.21929955,90713.0,90712.0,0.01002077]
[1731831367041,0.21129955,90713.0,90712.0,0.01002077]
[1731831367271,0.21129955,90713.0,90712.0,0.0017126]
[1731831367904,0.21129955,90713.0,90712.0,0.01002056]
[1731831369011,0.21129955,90713.0,90712.0,0.01002059]
[1731831370418,0.21129955,90713.0,90712.0,0.01002017]
[1731831370682,0.21129955,90713.0,90712.0,0.00892017]
[1731831370683,0.10906255,90713.0,90712.0,0.00892017]
[1731831370910,0.110231,90718.0,90712.0,0.00892017]
[1731831371127,0.110232,90718.0,90714.0,0.045]
[1731831371345,0.0008562,90722.0,90715.0,0.00830757]
[1731831371346,0.09895119,90721.0,90715.0,0.00830757]
[1731831371624,0.09980739,90722.0,90716.0,0.00830757]
[1731831371838,0.0008562,90722.0,90716.0,0.00830757]
[1731831372059,0.0008562,90722.0,90717.0,0.02504338]
[1731831372308,0.0008562,90722.0,90718.0,0.0523778]
[1731831372309,0.110228,90721.0,90718.0,0.0523778]
[1731831372535,0.110228,90721.0,90719.0,0.0215985]
[1731831372773,0.110228,90721.0,90720.0,0.02504338]
[1731831372986,0.0008562,90722.0,90720.0,0.02504338]
[1731831372987,0.0008562,90722.0,90720.0,0.0215985]
[1731831373186,0.0008562,90722.0,90721.0,0.01340354]
[1731831373493,0.0008562,90722.0,90721.0,0.03001648]
[1731831373723,0.0008562,90722.0,90721.0,0.04550101]
[1731831373973,0.0008562,90722.0,90721.0,0.05380858]
[1731831374449,0.0008562,90722.0,90721.0,0.03719564]
[1731831374865,0.1110822,90722.0,90721.0,0.04384945]
[1731831375306,0.22014475,90722.0,90721.0,0.02836217]
[1731831375564,0.22014475,90722.0,90721.0,0.02159344]
[1731831375800,0.22014475,90722.0,90721.0,0.0083046]
[1731831375801,0.58526695,90722.0,90721.0,0.0083046]
[1731831376052,0.110237,90713.0,90712.0,0.0006126]
[1731831376347,0.21929955,90713.0,90712.0,0.0006126]
[1731831376591,0.31821181,90713.0,90712.0,0.0006126]
[1731831376788,0.31821181,90713.0,90712.0,0.01390665]
[1731831376789,0.21929955,90713.0,90712.0,0.01390665]
[1731831377058,0.31821682,90713.0,90712.0,0.00892159]
[1731831377300,0.31821682,90713.0,90712.0,0.00892165]
[1731831377301,0.21929955,90713.0,90712.0,0.00892165]
[1731831378401,0.21929955,90713.0,90712.0,0.0222179]
[1731831378636,0.21929955,90713.0,90712.0,0.00892165]
[1731831378840,0.21929955,90713.0,90712.0,0.02221717]
[1731831379248,0.21929955,90713.0,90712.0,0.0222169]
[1731831379460,0.21929955,90713.0,90712.0,0.00892138]
[1731831379674,0.21929955,90713.0,90712.0,0.02221793]
[1731831381540,0.21929955,90713.0,90712.0,0.0006126]
[1731831381752,0.21929955,90713.0,90712.0,0.04230353]
[1731831381960,0.21129955,90713.0,90712.0,0.04230353]
[1731831382173,0.21129955,90713.0,90712.0,0.02567352]
[1731831382616,0.21129955,90713.0,90712.0,0.04230557]
[1731831382820,0.21129955,90713.0,90712.0,0.04230579]
[1731831383415,0.21129955,90713.0,90712.0,0.04230691]
[1731831383594,0.21129955,90713.0,90712.0,0.03470547]
[1731831383803,0.21129955,90713.0,90712.0,0.05133914]
[1731831384039,0.110235,90716.0,90712.0,0.05355025]
[1731831384252,0.110235,90715.0,90713.0,0.04169459]
[1731831384408,0.110235,90715.0,90714.0,0.07389978]
[1731831384616,0.110235,90715.0,90714.0,0.07611054]
[1731831384820,0.10906255,90716.0,90714.0,0.07611054]
[1731831385029,0.10906255,90716.0,90715.0,0.04314888]
[1731831385241,0.10906255,90716.0,90715.0,0.04659409]
[1731831385443,0.21929655,90716.0,90715.0,0.05491026]
[1731831385644,0.21929655,90716.0,90715.0,0.05712102]
[1731831385855,0.21929655,90716.0,90715.0,0.05491026]
[1731831387479,0.10906255,90716.0,90715.0,0.13481026]
[1731831387700,0.21929655,90716.0,90715.0,0.13702102]
[1731831388134,0.36776919,90716.0,90715.0,0.02373223]
[1731831388319,0.36776919,90716.0,90715.0,0.02162297]
[1731831388597,0.47445189,90716.0,90712.0,0.0006126]
[1731831388808,0.110237,90713.0,90712.0,0.0006126]
[1731831388969,0.21929955,90713.0,90712.0,0.00892952]
[1731831389130,0.4172787,90713.0,90712.0,0.00892952]
[1731831389333,0.58471441,90713.0,90712.0,0.02223869]
[1731831389539,0.46676115,90713.0,90712.0,0.02223869]
[1731831389751,0.83217601,90713.0,90712.0,0.00892952]
[1731831390015,0.58469984,90713.0,90712.0,0.00892952]
[1731831391073,0.8321667,90713.0,90712.0,0.00892952]
[1731831391299,0.58469984,90713.0,90712.0,0.00892952]
[1731831391572,0.78266185,90713.0,90712.0,0.00892952]
[1731831392242,0.58469984,90713.0,90712.0,0.00892952]
[1731831392463,0.21929955,90713.0,90712.0,0.01479373]
[1731831394371,0.21929955,90713.0,90712.0,0.02809898]
[1731831394578,0.31827895,90713.0,90712.0,0.02809898]
[1731831394807,0.31828311,90713.0,90712.0,0.02809725]
[1731831395298,0.21929955,90713.0,90712.0,0.02223304]
[1731831395742,0.31914225,90713.0,90712.0,0.02223304]
[1731831397103,0.31114225,90713.0,90712.0,0.02223304]
[1731831397570,0.21215585,90713.0,90712.0,0.02223304]
[1731831397984,0.21215585,90713.0,90712.0,0.03705799]
[1731831398237,0.36071191,90713.0,90712.0,0.03705838]
[1731831398454,0.21215585,90713.0,90712.0,0.02874356]
[1731831398667,0.57774304,90713.0,90712.0,0.02874356]
[1731831398896,0.21215585,90713.0,90712.0,0.02874356]
[1731831399108,0.36071446,90713.0,90712.0,0.02874356]
[1731831399321,0.21215585,90713.0,90712.0,0.03705914]
[1731831399549,0.3607129,90713.0,90712.0,0.03705914]
[1731831399993,0.21215585,90713.0,90712.0,0.03705914]
[1731831401552,0.36071651,90713.0,90712.0,0.03705914]
[1731831401997,0.36071651,90713.0,90712.0,0.02223458]
[1731831401998,0.21215585,90713.0,90712.0,0.02223458]
[1731831402205,0.41023192,90713.0,90712.0,0.02223458]
[1731831402471,0.21215585,90713.0,90712.0,0.02223458]
[1731831402886,0.37764753,90713.0,90712.0,0.02223458]
[1731831403157,0.60077889,90713.0,90712.0,0.00892818]
[1731831403367,0.93729024,90713.0,90712.0,0.00892818]
[1731831403600,0.98280565,90713.0,90712.0,0.00892818]
[1731831403832,0.110243,90708.0,90707.0,0.0017126]
[1731831404067,0.24230555,90708.0,90707.0,0.0017126]
[1731831405212,0.60787902,90708.0,90707.0,0.0017126]
[1731831405655,0.85543541,90708.0,90707.0,0.0017126]
[1731831405859,0.60787902,90708.0,90707.0,0.0017126]
[1731831408183,0.61487902,90708.0,90707.0,0.0017126]
[1731831408393,0.64924924,90708.0,90707.0,0.0017126]
[1731831409072,0.94631275,90708.0,90707.0,0.0017126]
[1731831409706,0.64924924,90708.0,90707.0,0.0017126]
[1731831411088,0.64224924,90708.0,90707.0,0.0017126]
[1731831411950,0.59987902,90708.0,90707.0,0.0017126]
[1731831412170,0.84721623,90708.0,90707.0,0.0017126]
[1731831412364,0.23430555,90708.0,90707.0,0.0017126]
[1731831412589,0.23430555,90708.0,90707.0,0.0149951]
[1731831412787,0.38269271,90708.0,90707.0,0.0017126]
[1731831412993,0.23430555,90708.0,90707.0,0.01499134]
[1731831413424,0.21130555,90708.0,90707.0,0.01499134]
[1731831414629,0.23430555,90708.0,90707.0,0.02420155]
[1731831414841,0.33322391,90708.0,90707.0,0.02420155]
[1731831415054,0.33322391,90708.0,90707.0,0.01092173]
[1731831415265,0.23430555,90708.0,90707.0,0.0442495]
[1731831415782,0.09891836,90711.0,90707.0,0.05254958]
[1731831415996,0.110242,90709.0,90708.0,0.04504271]
[1731831416228,0.110239,90712.0,90708.0,0.05255883]
[1731831416440,0.110239,90712.0,90709.0,0.0204429]
[1731831416669,0.10991885,90713.0,90710.0,0.02223854]
[1731831416876,0.10991885,90713.0,90711.0,0.01328009]
[1731831417106,0.10991885,90713.0,90712.0,0.04249451]
[1731831417320,0.10991885,90713.0,90712.0,0.0638874]
[1731831417321,0.22015585,90713.0,90712.0,0.0638874]
[1731831417538,0.24315585,90713.0,90712.0,0.04363086]
[1731831417747,0.24315585,90713.0,90712.0,0.04914343]
[1731831417748,0.13291885,90713.0,90712.0,0.04914343]
[1731831417967,0.13291885,90713.0,90712.0,0.05637196]
[1731831418176,0.13291885,90713.0,90712.0,0.05837535]
[1731831418467,0.12991885,90713.0,90712.0,0.06668587]
[1731831418697,0.0008562,90722.0,90721.0,0.110228]
[1731831418919,0.0008562,90722.0,90713.0,0.01786415]
[1731831418920,0.16549168,90721.0,90713.0,0.01786415]
[1731831419125,0.0008562,90722.0,90718.0,0.11023]
[1731831419336,0.0008562,90722.0,90714.0,0.05383355]
[1731831419337,0.0008562,90722.0,90719.0,0.01584585]
[1731831419547,0.0008562,90722.0,90721.0,0.0166069]
[1731831419762,0.110228,90721.0,90720.0,0.0166069]
[1731831419959,0.110228,90721.0,90720.0,0.03245299]
[1731831420225,0.133228,90721.0,90720.0,0.05309096]
[1731831420450,0.24229055,90721.0,90720.0,0.02501687]
[1731831420940,0.34120571,90721.0,90720.0,0.01327569]
[1731831421149,0.24229055,90721.0,90720.0,0.03817268]
[1731831421371,0.39069463,90721.0,90720.0,0.03817268]
[1731831421586,0.24229055,90721.0,90720.0,0.03817268]
[1731831421802,0.61250438,90721.0,90720.0,0.03817268]
[1731831422015,0.77466698,90721.0,90720.0,0.02489443]
[1731831422244,0.87966698,90721.0,90720.0,0.01659645]
[1731831422455,1.17644452,90721.0,90720.0,0.01659645]
[1731831422685,0.86966698,90721.0,90720.0,0.01659645]
[1731831423214,1.49106698,90721.0,90720.0,0.01659645]
[1731831423215,1.49106698,90721.0,90707.0,0.0017126]
[1731831423216,0.138243,90708.0,90707.0,0.0017126]
[1731831423435,0.40746815,90708.0,90707.0,0.0017126]
[1731831423646,0.77268198,90708.0,90707.0,0.0017126]
[1731831424282,1.02003694,90708.0,90707.0,0.0017126]
[1731831424493,0.77468198,90708.0,90707.0,0.0017126]
[1731831424900,1.02201596,90708.0,90707.0,0.0017126]
[1731831425110,1.02000378,90708.0,90707.0,0.0017126]
[1731831425531,1.06395139,90708.0,90707.0,0.0017126]
[1731831425764,1.02000378,90708.0,90707.0,0.0017126]
[1731831425986,0.64686603,90708.0,90707.0,0.0017126]
[1731831426218,0.81035543,90708.0,90707.0,0.0017126]
[1731831426878,0.80234713,90708.0,90707.0,0.0017126]
[1731831427086,0.60450818,90708.0,90707.0,0.0017126]
[1731831427334,0.80234759,90708.0,90707.0,0.0017126]
[1731831427546,0.60450818,90708.0,90707.0,0.0017126]
[1731831427768,0.60445014,90708.0,90707.0,0.0017126]
[1731831428007,0.23930555,90708.0,90707.0,0.0017126]
[1731831428464,0.38768064,90708.0,90707.0,0.0017126]
[1731831428680,0.23930555,90708.0,90707.0,0.0017126]
[1731831428879,0.38768162,90708.0,90707.0,0.0017126]
[1731831429341,0.3876816,90708.0,90707.0,0.0017126]
[1731831429589,0.38768201,90708.0,90707.0,0.0017126]
[1731831431193,0.23930555,90708.0,90707.0,0.010004]
[1731831431642,0.23930555,90708.0,90707.0,0.023272]
[1731831431846,0.23930555,90708.0,90707.0,0.010004]
[1731831432075,0.23930555,90708.0,90707.0,0.01000481]
[1731831432282,0.23930555,90708.0,90692.0,0.0165909]
[1731831432283,0.023,90707.0,90692.0,0.0165909]
[1731831432494,0.20797444,90706.0,90693.0,0.0034461]
[1731831432705,0.133259,90695.0,90694.0,0.01671914]
[1731831432914,0.24232155,90695.0,90694.0,0.01671914]
[1731831433349,0.24232155,90695.0,90694.0,0.01327304]
[1731831433778,0.110279,90679.0,90672.0,0.0017134]
[1731831433994,0.441042,90694.0,90673.0,0.17504298]
[1731831433995,0.32958355,90694.0,90673.0,0.17504298]
[1731831434212,0.023,90692.0,90678.0,0.12580475]
[1731831434427,0.023,90692.0,90686.0,0.12580475]
[1731831434653,0.22051,90699.0,90687.0,0.00344639]
[1731831434654,0.023,90695.0,90687.0,0.00344639]
[1731831434898,0.22051,90699.0,90688.0,0.01646803]
[1731831434899,0.110264,90691.0,90688.0,0.01646803]
[1731831435123,0.110264,90691.0,90689.0,0.01831526]
[1731831435349,0.110264,90691.0,90690.0,0.08544639]
[1731831435581,0.110264,90691.0,90690.0,0.08744093]
[1731831436056,0.110264,90691.0,90690.0,0.10046443]
[1731831436736,0.110264,90691.0,90690.0,0.0874405]
[1731831436945,0.110264,90691.0,90690.0,0.10046347]
[1731831437419,0.28861151,90691.0,90690.0,0.01846347]
[1731831437606,0.24232655,90691.0,90690.0,0.01501751]
[1731831437814,0.110274,90683.0,90682.0,0.0130266]
[1731831438024,0.24233655,90683.0,90682.0,0.02605497]
[1731831438233,0.24233655,90683.0,90664.0,0.015017]
[1731831438234,0.133286,90673.0,90664.0,0.015017]
[1731831438442,0.24234855,90673.0,90663.0,0.082]
[1731831439808,0.24234855,90673.0,90664.0,0.01302083]
[1731831440022,0.24234855,90673.0,90663.0,0.082]
[1731831441829,0.23434855,90673.0,90663.0,0.082]
[1731831442290,0.23434855,90673.0,90662.0,0.0477]
[1731831444742,0.23434855,90673.0,90659.0,0.01299995]